[Event "*** Biggest EVER Titled Tuesday"]
[Site "Chess.com"]
[Date "2018.04.17"]
[Round "7"]
[White "ChessTrail"]
[Black "JosefineHeinemann"]
[Result "1-0"]
[WhiteElo "2479"]
[BlackElo "2369"]
[TimeControl "180+2"]
[EndTime "14:39:39 PDT"]
[Termination "ChessTrail won by checkmate"]

1. e4 {[%clk 0:03:01.9]} 1... c5 {[%clk 0:02:58.9]} 2. Nf3 {[%clk 0:03:02.5]}
2... Nc6 {[%clk 0:03:00.1]} 3. d4 {[%clk 0:03:03.2]} 3... cxd4 {[%clk
0:03:01.5]} 4. Nxd4 {[%clk 0:03:05.1]} 4... Nf6 {[%clk 0:03:02.7]} 5. Nc3 {[%clk
0:03:05.6]} 5... e5 {[%clk 0:03:03.9]} 6. Ndb5 {[%clk 0:03:06.8]} 6... Bb4
{[%clk 0:03:04.8]} 7. a3 {[%clk 0:02:49.5]} 7... Bxc3+ {[%clk 0:03:04.6]} 8.
bxc3 {[%clk 0:02:47.3]} 8... O-O {[%clk 0:02:44.8]} 9. Nd6 {[%clk 0:02:44.2]}
9... Qa5 {[%clk 0:02:39.9]} 10. Bd2 {[%clk 0:02:41.9]} 10... Qc5 {[%clk
0:02:39.5]} 11. Nb5 {[%clk 0:02:10.3]} 11... Nxe4 {[%clk 0:02:15.7]} 12. Be3
{[%clk 0:02:10.1]} 12... Qe7 {[%clk 0:02:16.7]} 13. f3 {[%clk 0:02:01.6]} 13...
Nf6 {[%clk 0:01:55.5]} 14. Bg5 {[%clk 0:01:49.5]} 14... e4 {[%clk 0:01:50.6]}
15. f4 {[%clk 0:01:42.2]} 15... d5 {[%clk 0:01:45.2]} 16. Bxf6 {[%clk
0:01:33.6]} 16... Qxf6 {[%clk 0:01:45.5]} 17. g3 {[%clk 0:01:23.9]} 17... a6
{[%clk 0:01:45.1]} 18. Nd4 {[%clk 0:01:23.3]} 18... Bg4 {[%clk 0:01:44.5]} 19.
Be2 {[%clk 0:01:17.1]} 19... Bxe2 {[%clk 0:01:40.9]} 20. Nxe2 {[%clk 0:01:05.3]}
20... h5 {[%clk 0:01:33.9]} 21. Qxd5 {[%clk 0:01:01.2]} 21... Rad8 {[%clk
0:01:31.2]} 22. Qxh5 {[%clk 0:01:01.8]} 22... e3 {[%clk 0:01:29.3]} 23. O-O
{[%clk 0:00:51.4]} 23... Rd2 {[%clk 0:01:28.3]} 24. Rac1 {[%clk 0:00:50.9]}
24... Rfd8 {[%clk 0:01:27.9]} 25. Rfe1 {[%clk 0:00:43]} 25... Ne7 {[%clk
0:01:25.2]} 26. Nd4 {[%clk 0:00:41.9]} 26... R8xd4 {[%clk 0:01:20.5]} 27. cxd4
{[%clk 0:00:38.9]} 27... Qc6 {[%clk 0:01:20.2]} 28. Re2 {[%clk 0:00:38.5]} 28...
Qc4 {[%clk 0:01:11.9]} 29. Rce1 {[%clk 0:00:28.5]} 29... g6 {[%clk 0:01:01.5]}
30. Qf3 {[%clk 0:00:27.4]} 30... Nf5 {[%clk 0:01:02.2]} 31. Rxe3 {[%clk
0:00:23.5]} 31... Nxe3 {[%clk 0:00:59.3]} 32. Qxe3 {[%clk 0:00:24.4]} 32... Qxc2
{[%clk 0:00:57.2]} 33. Qe8+ {[%clk 0:00:25.2]} 33... Kg7 {[%clk 0:00:56.5]} 34.
Qe5+ {[%clk 0:00:25.9]} 34... Kh7 {[%clk 0:00:57.7]} 35. Qe4 {[%clk 0:00:21.7]}
35... Qb2 {[%clk 0:00:51.5]} 36. d5 {[%clk 0:00:19.7]} 36... Rxh2 {[%clk
0:00:51.8]} 37. Qf3 {[%clk 0:00:19]} 37... Rh5 {[%clk 0:00:45.3]} 38. Qg2 {[%clk
0:00:18.8]} 38... Qd4+ {[%clk 0:00:44.7]} 39. Kf1 {[%clk 0:00:18]} 39... Qd3+
{[%clk 0:00:43.2]} 40. Kg1 {[%clk 0:00:18.8]} 40... Qxa3 {[%clk 0:00:43.6]} 41.
Rd1 {[%clk 0:00:19.3]} 41... Qc5+ {[%clk 0:00:44.3]} 42. Kf1 {[%clk 0:00:20.7]}
42... Qc4+ {[%clk 0:00:39.2]} 43. Kg1 {[%clk 0:00:21.6]} 43... Qc5+ {[%clk
0:00:39.6]} 44. Kf1 {[%clk 0:00:22.9]} 44... Qd6 {[%clk 0:00:39.8]} 45. Qe4
{[%clk 0:00:23.1]} 45... a5 {[%clk 0:00:37.7]} 46. Kg2 {[%clk 0:00:24.2]} 46...
Qd7 {[%clk 0:00:31.7]} 47. Kg1 {[%clk 0:00:19.3]} 47... b5 {[%clk 0:00:28.5]}
48. d6 {[%clk 0:00:19.7]} 48... Qa7+ {[%clk 0:00:28.9]} 49. Kg2 {[%clk
0:00:20.5]} 49... Qd7 {[%clk 0:00:29.5]} 50. Qe7 {[%clk 0:00:21.4]} 50... Qh3+
{[%clk 0:00:30]} 51. Kf3 {[%clk 0:00:22.5]} 51... Rf5 {[%clk 0:00:27.6]} 52. d7
{[%clk 0:00:22.6]} 52... Qh5+ {[%clk 0:00:28.6]} 53. Kf2 {[%clk 0:00:23.8]}
53... Qxd1 {[%clk 0:00:29.5]} 54. d8=Q {[%clk 0:00:24.5]} 54... Qc2+ {[%clk
0:00:26.9]} 55. Qe2 {[%clk 0:00:25]} 55... Qc5+ {[%clk 0:00:27.1]} 56. Qe3
{[%clk 0:00:25.8]} 56... Qc2+ {[%clk 0:00:26.9]} 57. Qdd2 {[%clk 0:00:26.6]}
57... Qb1 {[%clk 0:00:25.8]} 58. g4 {[%clk 0:00:27.5]} 58... Rf6 {[%clk
0:00:21.6]} 59. Qh3+ {[%clk 0:00:28]} 59... Kg7 {[%clk 0:00:22.2]} 60. g5 {[%clk
0:00:29.3]} 60... Re6 {[%clk 0:00:19.2]} 61. Qd4+ {[%clk 0:00:30]} 61... f6
{[%clk 0:00:20.4]} 62. Qd7+ {[%clk 0:00:30.9]} 62... Kg8 {[%clk 0:00:20.2]} 63.
Qhh7+ {[%clk 0:00:31.6]} 63... Kf8 {[%clk 0:00:21.4]} 64. Qh8# {[%clk
0:00:32.1]} 1-0

[Event "*** Biggest EVER Titled Tuesday"]
[Site "Chess.com"]
[Date "2018.04.17"]
[Round "7"]
[White "Cocaino74"]
[Black "muran29"]
[Result "1/2-1/2"]
[WhiteElo "2154"]
[BlackElo "2324"]
[TimeControl "180+2"]
[EndTime "14:39:39 PDT"]
[Termination "Game drawn - insufficient material"]

1. e4 {[%clk 0:03:01.9]} 1... c6 {[%clk 0:02:58.3]} 2. d4 {[%clk 0:03:01]} 2...
d5 {[%clk 0:02:59.6]} 3. exd5 {[%clk 0:03:02.2]} 3... cxd5 {[%clk 0:03:00.7]} 4.
Bd3 {[%clk 0:03:03.7]} 4... Nf6 {[%clk 0:03:02.2]} 5. c3 {[%clk 0:03:02.7]} 5...
Nc6 {[%clk 0:03:03.5]} 6. Bf4 {[%clk 0:03:02.8]} 6... e6 {[%clk 0:03:01.1]} 7.
Nf3 {[%clk 0:03:00.7]} 7... Bd6 {[%clk 0:03:02.2]} 8. Bxd6 {[%clk 0:02:57.2]}
8... Qxd6 {[%clk 0:03:03]} 9. O-O {[%clk 0:02:58.4]} 9... O-O {[%clk 0:03:04.1]}
10. Nbd2 {[%clk 0:02:59.2]} 10... b6 {[%clk 0:03:03.9]} 11. Re1 {[%clk
0:03:00.5]} 11... a5 {[%clk 0:03:04.9]} 12. Ne5 {[%clk 0:03:01.3]} 12... Ba6
{[%clk 0:03:04.6]} 13. Bxa6 {[%clk 0:02:44.7]} 13... Rxa6 {[%clk 0:03:06.5]} 14.
a4 {[%clk 0:02:46]} 14... Ne7 {[%clk 0:03:02.7]} 15. f4 {[%clk 0:02:42.2]} 15...
Ra7 {[%clk 0:03:03.5]} 16. Qf3 {[%clk 0:02:41.9]} 16... Rc7 {[%clk 0:03:04.1]}
17. g4 {[%clk 0:02:40.4]} 17... Nd7 {[%clk 0:02:58.3]} 18. h4 {[%clk 0:02:32.5]}
18... f6 {[%clk 0:02:57.4]} 19. Nd3 {[%clk 0:02:31.9]} 19... e5 {[%clk
0:02:50.7]} 20. f5 {[%clk 0:01:52.9]} 20... e4 {[%clk 0:02:49.3]} 21. Qf4 {[%clk
0:01:36.4]} 21... Qc6 {[%clk 0:02:32.1]} 22. Qg3 {[%clk 0:01:29]} 22... Re8
{[%clk 0:02:14.7]} 23. Nf4 {[%clk 0:01:29.5]} 23... Qd6 {[%clk 0:02:16]} 24. Kh2
{[%clk 0:01:25]} 24... Nc8 {[%clk 0:02:11.7]} 25. Nf1 {[%clk 0:01:18.2]} 25...
Nf8 {[%clk 0:02:10.2]} 26. Ne3 {[%clk 0:01:18.4]} 26... Ne7 {[%clk 0:02:00.4]}
27. g5 {[%clk 0:01:01.3]} 27... Rd7 {[%clk 0:01:58.6]} 28. Rg1 {[%clk
0:00:57.7]} 28... fxg5 {[%clk 0:01:25.9]} 29. Qxg5 {[%clk 0:00:46.5]} 29... Neg6
{[%clk 0:00:36.9]} 30. fxg6 {[%clk 0:00:34.1]} 30... Ne6 {[%clk 0:00:37.9]} 31.
gxh7+ {[%clk 0:00:17.4]} 31... Kh8 {[%clk 0:00:38.9]} 32. Qe5 {[%clk 0:00:13.2]}
32... Qxe5 {[%clk 0:00:36.2]} 33. dxe5 {[%clk 0:00:12.9]} 33... Nxf4 {[%clk
0:00:38.1]} 34. Rgf1 {[%clk 0:00:11.6]} 34... Nd3 {[%clk 0:00:35.2]} 35. e6
{[%clk 0:00:06.4]} 35... Rxe6 {[%clk 0:00:33.6]} 36. Rf5 {[%clk 0:00:07.1]}
36... Ne5 {[%clk 0:00:33.9]} 37. Rd1 {[%clk 0:00:06.9]} 37... Nf3+ {[%clk
0:00:21]} 38. Kh3 {[%clk 0:00:04.2]} 38... d4 {[%clk 0:00:21.7]} 39. cxd4 {[%clk
0:00:04.5]} 39... Rxd4 {[%clk 0:00:23.2]} 40. Rxd4 {[%clk 0:00:04.9]} 40... Nxd4
{[%clk 0:00:25]} 41. Rd5 {[%clk 0:00:05]} 41... Nf3 {[%clk 0:00:24.8]} 42. Kg3
{[%clk 0:00:03]} 42... Kxh7 {[%clk 0:00:25.8]} 43. Kf4 {[%clk 0:00:03.4]} 43...
Nxh4 {[%clk 0:00:26.6]} 44. Rh5+ {[%clk 0:00:04.5]} 44... Rh6 {[%clk 0:00:28]}
45. Rxh6+ {[%clk 0:00:04]} 45... Kxh6 {[%clk 0:00:29.4]} 46. Kxe4 {[%clk
0:00:05.3]} 46... Kg5 {[%clk 0:00:30.1]} 47. Nd5 {[%clk 0:00:06.1]} 47... Nf5
{[%clk 0:00:24.9]} 48. Nxb6 {[%clk 0:00:06.9]} 48... Kf6 {[%clk 0:00:20.2]} 49.
Nc4 {[%clk 0:00:05.7]} 49... Ke6 {[%clk 0:00:21.1]} 50. Nxa5 {[%clk 0:00:05.6]}
50... Nd6+ {[%clk 0:00:22.6]} 51. Kd4 {[%clk 0:00:05.3]} 51... g5 {[%clk
0:00:23.6]} 52. Nc4 {[%clk 0:00:05.2]} 52... Nc8 {[%clk 0:00:15.7]} 53. Ke4
{[%clk 0:00:05]} 53... Kd7 {[%clk 0:00:16.1]} 54. Kf5 {[%clk 0:00:04.7]} 54...
Kc6 {[%clk 0:00:17.5]} 55. b4 {[%clk 0:00:04.6]} 55... Kd5 {[%clk 0:00:18.4]}
56. Nd2 {[%clk 0:00:03.3]} 56... Kd4 {[%clk 0:00:18.5]} 57. b5 {[%clk
0:00:03.9]} 57... Kc3 {[%clk 0:00:19.1]} 58. Ne4+ {[%clk 0:00:04.2]} 58... Kb4
{[%clk 0:00:20.4]} 59. Kxg5 {[%clk 0:00:05.4]} 59... Kxa4 {[%clk 0:00:21.7]} 60.
b6 {[%clk 0:00:06.7]} 60... Nxb6 {[%clk 0:00:22.5]} 61. Nc5+ {[%clk 0:00:08.6]}
61... Kb5 {[%clk 0:00:23.7]} 62. Na4 {[%clk 0:00:09.9]} 62... Nxa4 {[%clk
0:00:24.8]} 1/2-1/2

[Event "*** Biggest EVER Titled Tuesday"]
[Site "Chess.com"]
[Date "2018.04.17"]
[Round "7"]
[White "TST2014"]
[Black "Rish_97"]
[Result "1-0"]
[WhiteElo "2336"]
[BlackElo "2270"]
[TimeControl "180+2"]
[EndTime "14:39:44 PDT"]
[Termination "TST2014 won by resignation"]

1. d4 {[%clk 0:03:01.9]} 1... d5 {[%clk 0:02:40.2]} 2. c4 {[%clk 0:02:57.3]}
2... e6 {[%clk 0:02:39.3]} 3. Nf3 {[%clk 0:02:58]} 3... Nf6 {[%clk 0:02:36]} 4.
Nc3 {[%clk 0:02:57.5]} 4... Bb4 {[%clk 0:02:28.3]} 5. e3 {[%clk 0:02:57.4]} 5...
O-O {[%clk 0:02:21.4]} 6. Bd2 {[%clk 0:02:55.6]} 6... Nbd7 {[%clk 0:02:07.9]} 7.
Bd3 {[%clk 0:02:49.1]} 7... a6 {[%clk 0:01:52.4]} 8. cxd5 {[%clk 0:02:41.5]}
8... exd5 {[%clk 0:01:45.7]} 9. O-O {[%clk 0:02:40.9]} 9... c5 {[%clk
0:01:40.4]} 10. Ne5 {[%clk 0:02:32.7]} 10... cxd4 {[%clk 0:01:34.3]} 11. exd4
{[%clk 0:02:29.7]} 11... Bd6 {[%clk 0:01:30.8]} 12. f4 {[%clk 0:02:15.1]} 12...
Qb6 {[%clk 0:01:27.8]} 13. Nf3 {[%clk 0:02:07.8]} 13... Qxb2 {[%clk 0:01:23.2]}
14. Rb1 {[%clk 0:02:02.6]} 14... Qa3 {[%clk 0:01:22.7]} 15. Rb3 {[%clk
0:01:56.2]} 15... Qa5 {[%clk 0:01:21.6]} 16. Ne4 {[%clk 0:01:55.3]} 16... Qc7
{[%clk 0:01:19.7]} 17. Nxd6 {[%clk 0:01:56.2]} 17... Qxd6 {[%clk 0:01:21.6]} 18.
Bb4 {[%clk 0:01:57.8]} 18... Qxf4 {[%clk 0:01:18.3]} 19. Bxf8 {[%clk 0:01:58.9]}
19... Nxf8 {[%clk 0:01:17.5]} 20. Kh1 {[%clk 0:01:57.8]} 20... b5 {[%clk
0:01:14.9]} 21. Ne5 {[%clk 0:01:57.4]} 21... Qh4 {[%clk 0:01:08.4]} 22. Bf5
{[%clk 0:01:51.7]} 22... Ng6 {[%clk 0:00:57.5]} 23. Rh3 {[%clk 0:01:49.7]} 23...
Qg5 {[%clk 0:00:57.7]} 24. Rg3 {[%clk 0:01:46.3]} 24... Qh4 {[%clk 0:00:55.6]}
25. Bxg6 {[%clk 0:01:24]} 25... hxg6 {[%clk 0:00:52.5]} 26. Rgf3 {[%clk
0:01:09.4]} 26... Be6 {[%clk 0:00:49.1]} 27. Rf4 {[%clk 0:01:10.2]} 27... Qh6
{[%clk 0:00:42.5]} 28. h3 {[%clk 0:01:09.6]} 28... Ne4 {[%clk 0:00:39.8]} 29.
Kh2 {[%clk 0:01:08.6]} 29... Qg5 {[%clk 0:00:32.5]} 30. Nxf7 {[%clk 0:01:04.7]}
30... Qg3+ {[%clk 0:00:27.6]} 31. Kh1 {[%clk 0:01:01.1]} 31... Bxh3 {[%clk
0:00:26]} 32. Qf3 {[%clk 0:00:59.9]} 32... Qxf3 {[%clk 0:00:19]} 33. R1xf3
{[%clk 0:01:01.3]} 33... Bf5 {[%clk 0:00:17.3]} 34. g4 {[%clk 0:00:59.6]} 34...
Be6 {[%clk 0:00:13.2]} 35. Ne5 {[%clk 0:00:55]} 35... Rc8 {[%clk 0:00:13.5]} 36.
Nxg6 {[%clk 0:00:52.5]} 36... Rc1+ {[%clk 0:00:14.6]} 37. Kg2 {[%clk 0:00:53.5]}
37... Rc2+ {[%clk 0:00:15.8]} 38. Kh3 {[%clk 0:00:54]} 38... Rc1 {[%clk
0:00:15.3]} 39. Rf8+ {[%clk 0:00:52.2]} 39... Kh7 {[%clk 0:00:15.8]} 40. Nf4
{[%clk 0:00:47]} 40... Bd7 {[%clk 0:00:16.4]} 41. Kg2 {[%clk 0:00:39.3]} 41...
Bxg4 {[%clk 0:00:15.4]} 42. Rf1 {[%clk 0:00:30.5]} 42... Rc2+ {[%clk 0:00:14.4]}
43. Kg1 {[%clk 0:00:32]} 43... Nd2 {[%clk 0:00:12.9]} 44. Rf2 {[%clk 0:00:30.4]}
44... Nf3+ {[%clk 0:00:13.3]} 45. Kg2 {[%clk 0:00:30.9]} 45... Nh4+ {[%clk
0:00:13.9]} 46. Kg3 {[%clk 0:00:30.2]} 46... Rxf2 {[%clk 0:00:12.8]} 47. Kxf2
{[%clk 0:00:30]} 47... Bf3 {[%clk 0:00:13.6]} 48. Kg3 {[%clk 0:00:29.9]} 48...
g5 {[%clk 0:00:13]} 49. Nh3 {[%clk 0:00:29.7]} 49... Kh6 {[%clk 0:00:11.6]} 50.
Rf6+ {[%clk 0:00:27.1]} 50... Kg7 {[%clk 0:00:10.7]} 51. Rxa6 {[%clk 0:00:27.6]}
51... Be4 {[%clk 0:00:10.2]} 52. Nxg5 {[%clk 0:00:28.3]} 52... Nf5+ {[%clk
0:00:10.5]} 53. Kf4 {[%clk 0:00:29.9]} 53... Nxd4 {[%clk 0:00:12.1]} 54. Nxe4
{[%clk 0:00:30.6]} 54... dxe4 {[%clk 0:00:12.2]} 55. Kxe4 {[%clk 0:00:32.2]}
55... Nc2 {[%clk 0:00:12.8]} 56. a3 {[%clk 0:00:28.5]} 56... b4 {[%clk
0:00:11.7]} 57. a4 {[%clk 0:00:27.7]} 57... b3 {[%clk 0:00:11.7]} 58. Rb6 {[%clk
0:00:28.5]} 1-0

[Event "*** Biggest EVER Titled Tuesday"]
[Site "Chess.com"]
[Date "2018.04.17"]
[Round "7"]
[White "shyam"]
[Black "pKiLz5Rn9b"]
[Result "0-1"]
[WhiteElo "2579"]
[BlackElo "2641"]
[TimeControl "180+2"]
[EndTime "14:39:48 PDT"]
[Termination "pKiLz5Rn9b won on time"]

1. e4 {[%clk 0:03:01.9]} 1... e6 {[%clk 0:03:00.9]} 2. d4 {[%clk 0:03:01.5]}
2... d5 {[%clk 0:03:01.9]} 3. Bd3 {[%clk 0:03:03.1]} 3... dxe4 {[%clk
0:02:58.8]} 4. Bxe4 {[%clk 0:03:05]} 4... Nf6 {[%clk 0:03:00.2]} 5. Bf3 {[%clk
0:03:05.3]} 5... Bd6 {[%clk 0:02:59.8]} 6. Nc3 {[%clk 0:03:01.1]} 6... c6 {[%clk
0:02:56.7]} 7. Nge2 {[%clk 0:02:56.7]} 7... Nbd7 {[%clk 0:02:57.7]} 8. Bg5
{[%clk 0:02:56.4]} 8... Qc7 {[%clk 0:02:57.2]} 9. Qd2 {[%clk 0:02:54.7]} 9...
O-O {[%clk 0:02:44.9]} 10. O-O-O {[%clk 0:02:55.2]} 10... Re8 {[%clk 0:02:44.8]}
11. Rhe1 {[%clk 0:02:53]} 11... Rb8 {[%clk 0:02:33.6]} 12. Kb1 {[%clk
0:02:32.6]} 12... b6 {[%clk 0:02:08.8]} 13. h4 {[%clk 0:02:01.9]} 13... Bb7
{[%clk 0:02:07.3]} 14. g4 {[%clk 0:02:02]} 14... a6 {[%clk 0:02:01.2]} 15. Be3
{[%clk 0:01:48.5]} 15... Nd5 {[%clk 0:01:26.7]} 16. Nxd5 {[%clk 0:01:45.5]}
16... cxd5 {[%clk 0:01:20.5]} 17. g5 {[%clk 0:01:44.6]} 17... b5 {[%clk
0:01:15.8]} 18. h5 {[%clk 0:01:20]} 18... Nb6 {[%clk 0:01:16]} 19. g6 {[%clk
0:01:20.9]} 19... Nc4 {[%clk 0:01:16.5]} 20. Qd3 {[%clk 0:01:21.8]} 20... e5
{[%clk 0:01:02]} 21. Qf5 {[%clk 0:01:00.7]} 21... Re6 {[%clk 0:00:41.4]} 22. Rg1
{[%clk 0:00:55.4]} 22... Rf6 {[%clk 0:00:32.8]} 23. gxh7+ {[%clk 0:00:51.7]}
23... Kh8 {[%clk 0:00:34.2]} 24. Qg4 {[%clk 0:00:41.1]} 24... Bf8 {[%clk
0:00:33.5]} 25. Bg5 {[%clk 0:00:39]} 25... Re6 {[%clk 0:00:14.5]} 26. Qf5 {[%clk
0:00:29.2]} 26... Rc8 {[%clk 0:00:08.9]} 27. h6 {[%clk 0:00:23.2]} 27... g6
{[%clk 0:00:05.4]} 28. Bf6+ {[%clk 0:00:13.6]} 28... Kxh7 {[%clk 0:00:06.5]} 29.
Rxg6 {[%clk 0:00:14.6]} 29... fxg6 {[%clk 0:00:08.1]} 30. Qxe6 {[%clk
0:00:15.8]} 30... Na3+ {[%clk 0:00:09.5]} 31. Ka1 {[%clk 0:00:17]} 31... Nxc2+
{[%clk 0:00:10.3]} 32. Kb1 {[%clk 0:00:18.2]} 32... Na3+ {[%clk 0:00:09]} 33.
Ka1 {[%clk 0:00:19.6]} 33... Nc2+ {[%clk 0:00:06.3]} 34. Kb1 {[%clk 0:00:20.7]}
34... Nxd4 {[%clk 0:00:06.8]} 35. Nxd4 {[%clk 0:00:18.6]} 35... exd4 {[%clk
0:00:08.2]} 36. Qe2 {[%clk 0:00:11.4]} 36... Qf7 {[%clk 0:00:07.8]} 37. Bxd4
{[%clk 0:00:11.4]} 37... Re8 {[%clk 0:00:09.3]} 38. Qd3 {[%clk 0:00:11.3]} 38...
Bc8 {[%clk 0:00:09.7]} 39. Ka1 {[%clk 0:00:11.5]} 39... Bf5 {[%clk 0:00:11.3]}
40. Qc3 {[%clk 0:00:12.9]} 40... Rc8 {[%clk 0:00:11.3]} 41. Qe3 {[%clk
0:00:12.2]} 41... Re8 {[%clk 0:00:11.5]} 42. Qf4 {[%clk 0:00:12.2]} 42... Qe6
{[%clk 0:00:08.2]} 43. Bc3 {[%clk 0:00:10.1]} 43... Bc5 {[%clk 0:00:04.9]} 44.
Bxd5 {[%clk 0:00:06.9]} 44... Qe2 {[%clk 0:00:05.7]} 45. Bf3 {[%clk 0:00:07.9]}
45... Qc2 {[%clk 0:00:06.2]} 46. a3 {[%clk 0:00:07.9]} 46... Bxa3 {[%clk
0:00:06]} 47. Rc1 {[%clk 0:00:04]} 47... Qb3 {[%clk 0:00:04]} 48. Qc7+ {[%clk
0:00:03]} 48... Re7 {[%clk 0:00:05.1]} 49. Qd6 {[%clk 0:00:03.5]} 49... Bxd6
{[%clk 0:00:04.8]} 0-1

[Event "*** Biggest EVER Titled Tuesday"]
[Site "Chess.com"]
[Date "2018.04.17"]
[Round "7"]
[White "sandager"]
[Black "mjray79"]
[Result "0-1"]
[WhiteElo "1922"]
[BlackElo "1926"]
[TimeControl "180+2"]
[EndTime "14:39:56 PDT"]
[Termination "mjray79 won by resignation"]

1. e4 {[%clk 0:03:00]} 1... c5 {[%clk 0:02:58.3]} 2. Nf3 {[%clk 0:03:00.7]} 2...
d6 {[%clk 0:02:56.9]} 3. d4 {[%clk 0:03:01.8]} 3... cxd4 {[%clk 0:02:55.1]} 4.
Nxd4 {[%clk 0:03:03.2]} 4... Nf6 {[%clk 0:02:53.5]} 5. Nc3 {[%clk 0:03:04.4]}
5... g6 {[%clk 0:02:51.4]} 6. Be3 {[%clk 0:03:03.6]} 6... Bg7 {[%clk 0:02:48]}
7. Be2 {[%clk 0:03:04.2]} 7... O-O {[%clk 0:02:47.1]} 8. O-O {[%clk 0:03:05.2]}
8... Nc6 {[%clk 0:02:45]} 9. Nb3 {[%clk 0:03:06.2]} 9... Be6 {[%clk 0:02:41.5]}
10. f4 {[%clk 0:03:06.8]} 10... a5 {[%clk 0:02:18.3]} 11. a4 {[%clk 0:03:05.9]}
11... Qc8 {[%clk 0:02:09.7]} 12. Kh1 {[%clk 0:02:46.6]} 12... Rd8 {[%clk
0:02:04.4]} 13. Nd5 {[%clk 0:02:40.2]} 13... Nxe4 {[%clk 0:01:57.2]} 14. Nb6
{[%clk 0:02:39.4]} 14... Qc7 {[%clk 0:01:52.2]} 15. Nxa8 {[%clk 0:02:39.4]}
15... Rxa8 {[%clk 0:01:52.2]} 16. Nd4 {[%clk 0:02:35.5]} 16... Nc5 {[%clk
0:01:43]} 17. Nxc6 {[%clk 0:02:25.4]} 17... Qxc6 {[%clk 0:01:40.9]} 18. Bf3
{[%clk 0:02:21.2]} 18... Qc7 {[%clk 0:01:37.3]} 19. Bd4 {[%clk 0:02:21.3]} 19...
Bc4 {[%clk 0:01:32.2]} 20. Re1 {[%clk 0:02:11.6]} 20... e5 {[%clk 0:01:31.9]}
21. Bxc5 {[%clk 0:01:59.1]} 21... dxc5 {[%clk 0:01:29.8]} 22. f5 {[%clk
0:01:03.5]} 22... Rd8 {[%clk 0:01:06.9]} 23. Qc1 {[%clk 0:00:56.7]} 23... gxf5
{[%clk 0:01:05.1]} 24. Qg5 {[%clk 0:00:56.8]} 24... Be6 {[%clk 0:01:01.4]} 25.
c3 {[%clk 0:00:53.3]} 25... e4 {[%clk 0:01:00.5]} 26. Rad1 {[%clk 0:00:47.5]}
26... Re8 {[%clk 0:00:53.1]} 27. Be2 {[%clk 0:00:43.3]} 27... Qe5 {[%clk
0:00:48.8]} 28. Bb5 {[%clk 0:00:43.2]} 28... Rc8 {[%clk 0:00:47]} 29. Rd8+
{[%clk 0:00:43.5]} 29... Rxd8 {[%clk 0:00:47]} 30. Qxd8+ {[%clk 0:00:44.5]}
30... Bf8 {[%clk 0:00:45.8]} 31. Rd1 {[%clk 0:00:44.7]} 31... Kg7 {[%clk
0:00:44.6]} 32. Qg5+ {[%clk 0:00:44.6]} 32... Kh8 {[%clk 0:00:40.1]} 33. Rd8
{[%clk 0:00:44.1]} 33... Qg7 {[%clk 0:00:39]} 34. Qxg7+ {[%clk 0:00:25.6]} 34...
Kxg7 {[%clk 0:00:38.4]} 35. Kg1 {[%clk 0:00:26.8]} 35... Be7 {[%clk 0:00:34.1]}
36. Rb8 {[%clk 0:00:26.3]} 36... Bd5 {[%clk 0:00:34.1]} 37. Re8 {[%clk
0:00:23.9]} 37... Kf6 {[%clk 0:00:34]} 38. g3 {[%clk 0:00:23]} 38... h6 {[%clk
0:00:21]} 39. Kf2 {[%clk 0:00:21.1]} 39... Bd6 {[%clk 0:00:20]} 40. Ke3 {[%clk
0:00:19.9]} 40... Be5 {[%clk 0:00:19.6]} 41. Rd8 {[%clk 0:00:18.7]} 41... Be6
{[%clk 0:00:16]} 42. Rd1 {[%clk 0:00:17.3]} 42... Kg5 {[%clk 0:00:15.1]} 43. Bd7
{[%clk 0:00:16.6]} 43... Kf6 {[%clk 0:00:13.8]} 44. Bxe6 {[%clk 0:00:16]} 44...
Kxe6 {[%clk 0:00:14.4]} 45. Rd8 {[%clk 0:00:15.6]} 45... Bd6 {[%clk 0:00:13.2]}
46. Rh8 {[%clk 0:00:13.6]} 46... Ke5 {[%clk 0:00:13.1]} 47. Rxh6 {[%clk
0:00:13.9]} 47... Be7 {[%clk 0:00:10.9]} 48. Rb6 {[%clk 0:00:12.7]} 48... Bg5+
{[%clk 0:00:08.6]} 49. Ke2 {[%clk 0:00:13.2]} 49... f4 {[%clk 0:00:08.1]} 50.
gxf4+ {[%clk 0:00:13.9]} 50... Kxf4 {[%clk 0:00:08.4]} 51. Rxb7 {[%clk
0:00:14.8]} 51... f5 {[%clk 0:00:09]} 52. Rf7 {[%clk 0:00:15.4]} 52... Kg4
{[%clk 0:00:08.9]} 53. Rc7 {[%clk 0:00:15.2]} 53... f4 {[%clk 0:00:08.7]} 54.
Rxc5 {[%clk 0:00:15.7]} 54... f3+ {[%clk 0:00:09.4]} 55. Kf1 {[%clk 0:00:16.2]}
55... Kf4 {[%clk 0:00:08]} 56. Rc4 {[%clk 0:00:15.6]} 56... Ke3 {[%clk 0:00:08]}
57. Rc5 {[%clk 0:00:13.1]} 57... Bf4 {[%clk 0:00:06]} 58. Rxa5 {[%clk
0:00:12.6]} 58... f2 {[%clk 0:00:06.1]} 59. Rf5 {[%clk 0:00:12]} 59... Kf3
{[%clk 0:00:06.1]} 60. h4 {[%clk 0:00:12.2]} 60... e3 {[%clk 0:00:06.3]} 61.
Rxf4+ {[%clk 0:00:12.4]} 61... Kxf4 {[%clk 0:00:06.5]} 62. Ke2 {[%clk
0:00:12.8]} 62... Kg3 {[%clk 0:00:06.6]} 63. Kf1 {[%clk 0:00:13.3]} 63... Kf3
{[%clk 0:00:06.9]} 0-1